[Event "Titled Tuesday Blitz November 29 Early 2022"]
[White "Floresvillar Gonzalez, Luis Migu"]
[Black "Troltenier, Dirk"]
[WhiteFideId "5100542"]
[BlackFideId "4606400"]
[WhiteElo "2040"]
[BlackElo "2319"]
[Result "0-1"]
[Round "08"]
[TimeControl "180+1"]
[Date "2022.11.30"]
[WhiteClock "0:00:23"]
[BlackClock "0:00:09"]

1. d4 {[%clk 0:02:56]}  d5 {[%clk 0:02:58]} 2. c3 {[%clk 0:02:56]}  Nf6 {[%clk 0:02:57]} 3. Bg5 {[%clk 0:02:56]}  Ne4 {[%clk 0:02:56]} 4. h4 {[%clk 0:02:56]}  c5 {[%clk 0:02:50]} 5. e3 {[%clk 0:02:54]}  Qb6 {[%clk 0:02:42]} 6. Qb3 {[%clk 0:02:52]}  c4 {[%clk 0:02:30]} 7. Qxb6 {[%clk 0:02:51]}  axb6 {[%clk 0:02:31]} 8. Nd2 {[%clk 0:02:49]}  Bf5 {[%clk 0:02:29]} 9. Nxe4 {[%clk 0:02:47]}  Bxe4 {[%clk 0:02:29]} 10. f3 {[%clk 0:02:48]}  Bf5 {[%clk 0:02:18]} 11. e4 {[%clk 0:02:46]}  dxe4 {[%clk 0:02:11]} 12. Bxc4 {[%clk 0:02:45]}  Nc6 {[%clk 0:01:51]} 13. fxe4 {[%clk 0:02:39]}  Bxe4 {[%clk 0:01:48]} 14. Nf3 {[%clk 0:02:39]}  e6 {[%clk 0:01:06]} 15. O-O {[%clk 0:02:35]}  Bd6 {[%clk 0:01:04]} 16. Rae1 {[%clk 0:02:30]}  Bg6 {[%clk 0:00:56]} 17. a3 {[%clk 0:02:29]}  O-O {[%clk 0:00:53]} 18. Ne5 {[%clk 0:02:01]}  Nxe5 {[%clk 0:00:18]} 19. dxe5 {[%clk 0:01:57]}  Bc5+ {[%clk 0:00:18]} 20. Be3 {[%clk 0:01:57]}  Rfc8 {[%clk 0:00:18]} 21. g4 {[%clk 0:01:46]}  Bxe3+ {[%clk 0:00:17]} 22. Rxe3 {[%clk 0:01:45]}  Rxc4 {[%clk 0:00:18]} 23. h5 {[%clk 0:01:43]}  Rxg4+ {[%clk 0:00:17]} 24. Kf2 {[%clk 0:01:38]}  Bxh5 {[%clk 0:00:17]} 25. Rh1 {[%clk 0:01:37]}  Rg5 {[%clk 0:00:17]} 26. Reh3 {[%clk 0:01:35]}  g6 {[%clk 0:00:16]} 27. Re3 {[%clk 0:01:32]}  Ra5 {[%clk 0:00:17]} 28. Rhe1 {[%clk 0:01:31]}  Kg7 {[%clk 0:00:17]} 29. Re4 {[%clk 0:01:25]}  Rf5+ {[%clk 0:00:18]} 30. Ke3 {[%clk 0:01:23]}  Raxe5 {[%clk 0:00:14]} 31. Kd4 {[%clk 0:01:22]}  Rxe4+ {[%clk 0:00:13]} 32. Rxe4 {[%clk 0:01:22]}  Rd5+ {[%clk 0:00:13]} 33. Kc4 {[%clk 0:01:21]}  Bf3 {[%clk 0:00:11]} 34. Rh4 {[%clk 0:01:20]}  h5 {[%clk 0:00:11]} 35. a4 {[%clk 0:01:19]}  Bg4 {[%clk 0:00:09]} 36. Rh2 {[%clk 0:01:18]}  g5 {[%clk 0:00:08]} 37. b4 {[%clk 0:01:18]}  f5 {[%clk 0:00:08]} 38. b5 {[%clk 0:01:14]}  f4 {[%clk 0:00:08]} 39. Rf2 {[%clk 0:01:11]}  Kf6 {[%clk 0:00:09]} 40. Kb4 {[%clk 0:01:10]}  h4 {[%clk 0:00:08]} 41. c4 {[%clk 0:01:10]}  Re5 {[%clk 0:00:08]} 42. a5 {[%clk 0:01:09]}  bxa5+ {[%clk 0:00:08]} 43. Kxa5 {[%clk 0:01:10]}  h3 {[%clk 0:00:08]} 44. Kb6 {[%clk 0:01:10]}  Re4 {[%clk 0:00:07]} 45. c5 {[%clk 0:01:09]}  Rb4 {[%clk 0:00:06]} 46. c6 {[%clk 0:01:08]}  bxc6 {[%clk 0:00:06]} 47. Kxc6 {[%clk 0:01:08]}  Kf5 {[%clk 0:00:03]} 48. b6 {[%clk 0:01:09]}  Rxb6+ {[%clk 0:00:03]} 49. Kxb6 {[%clk 0:01:08]}  e5 {[%clk 0:00:04]} 50. Kc5 {[%clk 0:01:08]}  e4 {[%clk 0:00:03]} 51. Kd4 {[%clk 0:01:08]}  e3 {[%clk 0:00:04]} 52. Rf1 {[%clk 0:01:07]}  e2 {[%clk 0:00:05]} 53. Re1 {[%clk 0:01:07]}  f3 {[%clk 0:00:05]} 54. Ke3 {[%clk 0:01:06]}  h2 {[%clk 0:00:05]} 55. Kf2 {[%clk 0:01:05]}  Kf4 {[%clk 0:00:04]} 56. Rh1 {[%clk 0:01:05]}  Bf5 {[%clk 0:00:05]} 57. Rxh2 {[%clk 0:01:04]}  g4 {[%clk 0:00:05]} 58. Rh4 {[%clk 0:01:00]}  Kg5 {[%clk 0:00:04]} 59. Rh8 {[%clk 0:01:00]}  Kf4 {[%clk 0:00:03]} 60. Rh4 {[%clk 0:00:59]}  e1=Q+ {[%clk 0:00:03]} 61. Kxe1 {[%clk 0:00:57]}  Kg3 {[%clk 0:00:03]} 62. Rh8 {[%clk 0:00:56]}  f2+ {[%clk 0:00:04]} 63. Ke2 {[%clk 0:00:54]}  Bd3+ {[%clk 0:00:04]} 64. Kxd3 {[%clk 0:00:54]}  f1=Q+ {[%clk 0:00:05]} 65. Ke4 {[%clk 0:00:50]}  Qf3+ {[%clk 0:00:06]} 66. Kd4 {[%clk 0:00:46]}  Kf2 {[%clk 0:00:07]} 67. Rh5 {[%clk 0:00:38]}  g3 {[%clk 0:00:08]} 68. Re5 {[%clk 0:00:36]}  g2 {[%clk 0:00:09]} 69. Ra5 {[%clk 0:00:23]}  g1=Q {[%clk 0:00:09]} 70. Ra2+ {[%clk 0:00:23]}  Kg3+ {[%clk 0:00:09]} 0-1


[Site "https://www.chess.com"]

[Event "Titled Tuesday Blitz November 29 Early 2022"]
[White "Gabrielian, Artur"]
[Black "Balabayeva, Xeniya"]
[WhiteFideId "4131002"]
[BlackFideId "13719688"]
[WhiteElo "2432"]
[BlackElo "2041"]
[Result "1-0"]
[Round "08"]
[TimeControl "180+1"]
[Date "2022.11.30"]
[WhiteClock "0:00:06"]
[BlackClock "0:00:01"]

1. d4 {[%clk 0:03:00]}  d5 {[%clk 0:02:54]} 2. c4 {[%clk 0:03:00]}  e6 {[%clk 0:02:54]} 3. Nc3 {[%clk 0:03:00]}  Nf6 {[%clk 0:02:53]} 4. cxd5 {[%clk 0:03:00]}  exd5 {[%clk 0:02:52]} 5. Bg5 {[%clk 0:03:00]}  Be7 {[%clk 0:02:52]} 6. e3 {[%clk 0:03:00]}  c6 {[%clk 0:02:52]} 7. Bd3 {[%clk 0:02:53]}  Nbd7 {[%clk 0:02:51]} 8. Qc2 {[%clk 0:02:52]}  Nh5 {[%clk 0:02:49]} 9. Bxe7 {[%clk 0:02:49]}  Qxe7 {[%clk 0:02:50]} 10. O-O-O {[%clk 0:02:44]}  Nb6 {[%clk 0:02:22]} 11. Nf3 {[%clk 0:02:31]}  Be6 {[%clk 0:02:19]} 12. Rhe1 {[%clk 0:02:26]}  O-O-O {[%clk 0:02:16]} 13. Kb1 {[%clk 0:02:23]}  Kb8 {[%clk 0:02:16]} 14. Ne5 {[%clk 0:02:17]}  g6 {[%clk 0:01:52]} 15. h3 {[%clk 0:01:59]}  Ng7 {[%clk 0:01:50]} 16. g4 {[%clk 0:01:49]}  f6 {[%clk 0:01:40]} 17. Nf3 {[%clk 0:01:48]}  f5 {[%clk 0:01:39]} 18. Ne5 {[%clk 0:01:45]}  fxg4 {[%clk 0:01:31]} 19. hxg4 {[%clk 0:01:44]}  Nd7 {[%clk 0:01:27]} 20. Nxd7+ {[%clk 0:01:39]}  Qxd7 {[%clk 0:01:25]} 21. f3 {[%clk 0:01:38]}  Rhf8 {[%clk 0:01:22]} 22. Rf1 {[%clk 0:01:36]}  h5 {[%clk 0:01:14]} 23. gxh5 {[%clk 0:01:17]}  gxh5 {[%clk 0:01:12]} 24. Qh2+ {[%clk 0:01:09]}  Qc7 {[%clk 0:01:07]} 25. Qh4 {[%clk 0:01:07]}  Nf5 {[%clk 0:00:59]} 26. Bxf5 {[%clk 0:00:59]}  Bxf5+ {[%clk 0:01:00]} 27. Kc1 {[%clk 0:00:55]}  Qf7 {[%clk 0:00:41]} 28. Rg1 {[%clk 0:00:47]}  Ka8 {[%clk 0:00:36]} 29. Rg5 {[%clk 0:00:39]}  Bc8 {[%clk 0:00:23]} 30. Rg3 {[%clk 0:00:28]}  Bf5 {[%clk 0:00:21]} 31. Kd2 {[%clk 0:00:25]}  Bh7 {[%clk 0:00:19]} 32. Rdg1 {[%clk 0:00:24]}  Qf5 {[%clk 0:00:18]} 33. Ke1 {[%clk 0:00:13]}  Rde8 {[%clk 0:00:17]} 34. Nd1 {[%clk 0:00:12]}  Qc2 {[%clk 0:00:12]} 35. R3g2 {[%clk 0:00:12]}  Qc1 {[%clk 0:00:11]} 36. Qf2 {[%clk 0:00:11]}  Bd3 {[%clk 0:00:05]} 37. Qd2 {[%clk 0:00:10]}  Qxd2+ {[%clk 0:00:05]} 38. Kxd2 {[%clk 0:00:10]}  Ba6 {[%clk 0:00:04]} 39. Rf2 {[%clk 0:00:10]}  h4 {[%clk 0:00:03]} 40. Rh1 {[%clk 0:00:10]}  Rh8 {[%clk 0:00:02]} 41. Rfh2 {[%clk 0:00:09]}  Rhf8 {[%clk 0:00:01]} 42. Rh3 {[%clk 0:00:10]}  Rf7 {[%clk 0:00:01]} 43. Nf2 {[%clk 0:00:09]}  b6 {[%clk 0:00:01]} 44. f4 {[%clk 0:00:09]}  Bc8 {[%clk 0:00:01]} 45. Rxh4 {[%clk 0:00:09]}  Rfe7 {[%clk 0:00:01]} 46. Nd1 {[%clk 0:00:07]}  Bf5 {[%clk 0:00:01]} 47. R4h2 {[%clk 0:00:06]}  Rg7 {[%clk 0:00:01]} 48. Rf2 {[%clk 0:00:06]}  Kb7 {[%clk 0:00:01]} 49. Rfh2 {[%clk 0:00:05]}  Reg8 {[%clk 0:00:01]} 50. Re1 {[%clk 0:00:05]}  Rg2+ {[%clk 0:00:01]} 51. Rxg2 {[%clk 0:00:05]}  Rxg2+ {[%clk 0:00:01]} 52. Re2 {[%clk 0:00:05]}  Rg1 {[%clk 0:00:01]} 53. Nc3 {[%clk 0:00:06]}  Bg4 {[%clk 0:00:01]} 54. Rh2 {[%clk 0:00:06]} 1-0


[Site "https://www.chess.com"]

[Event "Titled Tuesday Blitz November 29 Early 2022"]
[White "Hambleton, Aman"]
[Black "Mohamed Anees M"]
[WhiteFideId "2606577"]
[BlackFideId "35065815"]
[WhiteElo "2538"]
[BlackElo "2135"]
[Result "0-1"]
[Round "08"]
[TimeControl "180+1"]
[Date "2022.11.30"]
[WhiteClock "0:00:02"]
[BlackClock "0:00:17"]

1. d4 {[%clk 0:03:00]}  d5 {[%clk 0:02:59]} 2. c4 {[%clk 0:03:01]}  c6 {[%clk 0:03:00]} 3. Nc3 {[%clk 0:03:01]}  Nf6 {[%clk 0:02:59]} 4. e3 {[%clk 0:03:02]}  e6 {[%clk 0:03:00]} 5. Nf3 {[%clk 0:03:01]}  Nbd7 {[%clk 0:03:00]} 6. Qc2 {[%clk 0:03:02]}  Bd6 {[%clk 0:03:00]} 7. e4 {[%clk 0:03:02]}  dxe4 {[%clk 0:02:58]} 8. Nxe4 {[%clk 0:03:03]}  Nxe4 {[%clk 0:02:58]} 9. Qxe4 {[%clk 0:03:04]}  Nf6 {[%clk 0:02:59]} 10. Qh4 {[%clk 0:03:04]}  Bb4+ {[%clk 0:02:49]} 11. Bd2 {[%clk 0:03:04]}  Bxd2+ {[%clk 0:02:49]} 12. Nxd2 {[%clk 0:03:05]}  O-O {[%clk 0:02:46]} 13. O-O-O {[%clk 0:03:02]}  Qa5 {[%clk 0:02:33]} 14. Bd3 {[%clk 0:02:50]}  e5 {[%clk 0:02:21]} 15. Ne4 {[%clk 0:02:24]}  Nxe4 {[%clk 0:02:16]} 16. Qxe4 {[%clk 0:02:25]}  f5 {[%clk 0:02:14]} 17. Qxe5 {[%clk 0:02:24]}  Qxa2 {[%clk 0:02:14]} 18. Rhe1 {[%clk 0:02:10]}  Bd7 {[%clk 0:02:14]} 19. Qd6 {[%clk 0:01:44]}  Qa1+ {[%clk 0:01:57]} 20. Kc2 {[%clk 0:00:47]}  Qa4+ {[%clk 0:01:56]} 21. b3 {[%clk 0:00:48]}  Qa2+ {[%clk 0:01:51]} 22. Kc3 {[%clk 0:00:48]}  Qa5+ {[%clk 0:01:49]} 23. Kb2 {[%clk 0:00:44]}  Rad8 {[%clk 0:01:29]} 24. Re7 {[%clk 0:00:36]}  Bc8 {[%clk 0:01:26]} 25. Qe5 {[%clk 0:00:13]}  Qxe5 {[%clk 0:01:26]} 26. dxe5 {[%clk 0:00:13]}  Rf7 {[%clk 0:01:26]} 27. Rxf7 {[%clk 0:00:12]}  Kxf7 {[%clk 0:01:27]} 28. f4 {[%clk 0:00:13]}  Be6 {[%clk 0:01:25]} 29. Kc3 {[%clk 0:00:12]}  c5 {[%clk 0:01:24]} 30. Ra1 {[%clk 0:00:08]}  a6 {[%clk 0:01:21]} 31. Ra5 {[%clk 0:00:08]}  Rc8 {[%clk 0:01:14]} 32. Be2 {[%clk 0:00:06]}  Rc7 {[%clk 0:01:09]} 33. g3 {[%clk 0:00:04]}  Bc8 {[%clk 0:01:04]} 34. h4 {[%clk 0:00:03]}  b6 {[%clk 0:01:04]} 35. Ra1 {[%clk 0:00:03]}  a5 {[%clk 0:01:04]} 36. Bf3 {[%clk 0:00:03]}  Rd7 {[%clk 0:00:58]} 37. Bd5+ {[%clk 0:00:02]}  Ke7 {[%clk 0:00:58]} 38. h5 {[%clk 0:00:02]}  Bb7 {[%clk 0:00:51]} 39. Rd1 {[%clk 0:00:03]}  b5 {[%clk 0:00:38]} 40. Rd2 {[%clk 0:00:01]}  b4+ {[%clk 0:00:29]} 41. Kc2 {[%clk 0:00:02]}  Ba6 {[%clk 0:00:26]} 42. Rg2 {[%clk 0:00:02]}  Bc8 {[%clk 0:00:20]} 43. g4 {[%clk 0:00:02]}  fxg4 {[%clk 0:00:18]} 44. Rxg4 {[%clk 0:00:03]}  Rxd5 {[%clk 0:00:18]} 45. Rxg7+ {[%clk 0:00:01]}  Kf8 {[%clk 0:00:19]} 46. Rxh7 {[%clk 0:00:02]}  Bf5+ {[%clk 0:00:19]} 47. Kc1 {[%clk 0:00:02]}  Rd1+ {[%clk 0:00:18]} 48. Kxd1 {[%clk 0:00:02]}  Bxh7 {[%clk 0:00:19]} 49. Kd2 {[%clk 0:00:01]}  Ke7 {[%clk 0:00:20]} 50. h6 {[%clk 0:00:01]}  Ke6 {[%clk 0:00:20]} 51. Ke3 {[%clk 0:00:01]}  Bc2 {[%clk 0:00:19]} 52. Kd2 {[%clk 0:00:01]}  Bg6 {[%clk 0:00:18]} 53. Ke3 {[%clk 0:00:02]}  Kf5 {[%clk 0:00:19]} 54. Kd2 {[%clk 0:00:01]}  Kxf4 {[%clk 0:00:16]} 55. e6 {[%clk 0:00:02]}  Kg5 {[%clk 0:00:16]} 56. Ke3 {[%clk 0:00:01]}  Kxh6 {[%clk 0:00:17]} 57. Kf4 {[%clk 0:00:02]}  Kg7 {[%clk 0:00:17]} 58. Ke5 {[%clk 0:00:02]}  Kf8 {[%clk 0:00:17]} 59. Kd6 {[%clk 0:00:02]}  Bc2 {[%clk 0:00:17]} 60. Kxc5 {[%clk 0:00:01]}  Bxb3 {[%clk 0:00:17]} 61. Kb5 {[%clk 0:00:02]}  Bxc4+ {[%clk 0:00:15]} 62. Kxc4 {[%clk 0:00:01]}  Ke7 {[%clk 0:00:15]} 63. Kb3 {[%clk 0:00:01]}  Kxe6 {[%clk 0:00:16]} 64. Kb2 {[%clk 0:00:01]}  Kd5 {[%clk 0:00:15]} 65. Kb3 {[%clk 0:00:02]}  Kc5 {[%clk 0:00:16]} 66. Ka4 {[%clk 0:00:02]}  Kc4 {[%clk 0:00:17]} 0-1


[Site "https://www.chess.com"]

[Event "Titled Tuesday Blitz November 29 Early 2022"]
[White "Ibarra Jerez, Jose Carlos"]
[Black "Malek, Jan"]
[WhiteFideId "2226332"]
[BlackFideId "21864080"]
[WhiteElo "2638"]
[BlackElo "2255"]
[Result "1-0"]
[Round "08"]
[TimeControl "180+1"]
[Date "2022.11.30"]
[WhiteClock "0:00:05"]
[BlackClock "0:00:02"]

1. Nf3 {[%clk 0:03:00]}  g6 {[%clk 0:03:00]} 2. g3 {[%clk 0:03:01]}  Bg7 {[%clk 0:03:01]} 3. Bg2 {[%clk 0:03:01]}  Nf6 {[%clk 0:03:02]} 4. b3 {[%clk 0:03:01]}  O-O {[%clk 0:03:02]} 5. Bb2 {[%clk 0:03:02]}  a5 {[%clk 0:03:01]} 6. c4 {[%clk 0:03:01]}  a4 {[%clk 0:03:01]} 7. bxa4 {[%clk 0:03:01]}  d6 {[%clk 0:02:58]} 8. O-O {[%clk 0:03:01]}  Nc6 {[%clk 0:02:57]} 9. d4 {[%clk 0:02:57]}  e5 {[%clk 0:02:57]} 10. d5 {[%clk 0:02:40]}  Na5 {[%clk 0:02:49]} 11. Nfd2 {[%clk 0:02:40]}  Nd7 {[%clk 0:02:47]} 12. e4 {[%clk 0:02:35]}  Nc5 {[%clk 0:02:47]} 13. Qc2 {[%clk 0:02:34]}  Bd7 {[%clk 0:02:43]} 14. Nc3 {[%clk 0:02:33]}  f5 {[%clk 0:02:31]} 15. exf5 {[%clk 0:02:30]}  gxf5 {[%clk 0:02:31]} 16. Nb5 {[%clk 0:02:21]}  Rf7 {[%clk 0:02:16]} 17. Bc3 {[%clk 0:02:21]}  b6 {[%clk 0:02:12]} 18. Bb4 {[%clk 0:02:16]}  Nab7 {[%clk 0:02:12]} 19. Nb3 {[%clk 0:02:08]}  Nxa4 {[%clk 0:02:05]} 20. Rac1 {[%clk 0:02:08]}  e4 {[%clk 0:01:58]} 21. N3d4 {[%clk 0:02:04]}  Nbc5 {[%clk 0:01:56]} 22. Rcd1 {[%clk 0:01:59]}  Nd3 {[%clk 0:01:55]} 23. Rxd3 {[%clk 0:01:58]}  exd3 {[%clk 0:01:55]} 24. Qxd3 {[%clk 0:01:59]}  Nc5 {[%clk 0:01:53]} 25. Qc2 {[%clk 0:01:56]}  Bxb5 {[%clk 0:01:49]} 26. Nxb5 {[%clk 0:01:56]}  Qf6 {[%clk 0:01:43]} 27. a3 {[%clk 0:01:49]}  Qb2 {[%clk 0:01:38]} 28. Qd1 {[%clk 0:01:43]}  Re8 {[%clk 0:01:29]} 29. Bf3 {[%clk 0:01:43]}  Rfe7 {[%clk 0:01:23]} 30. Bh5 {[%clk 0:01:42]}  Rf8 {[%clk 0:01:23]} 31. Bxc5 {[%clk 0:01:33]}  bxc5 {[%clk 0:01:21]} 32. Re1 {[%clk 0:01:25]}  Be5 {[%clk 0:01:05]} 33. a4 {[%clk 0:01:16]}  Ra8 {[%clk 0:01:01]} 34. Re2 {[%clk 0:01:12]}  Qb4 {[%clk 0:00:54]} 35. Qc2 {[%clk 0:00:52]}  Qxa4 {[%clk 0:00:29]} 36. Qd3 {[%clk 0:00:40]}  Kh8 {[%clk 0:00:25]} 37. Kg2 {[%clk 0:00:32]}  f4 {[%clk 0:00:15]} 38. gxf4 {[%clk 0:00:26]}  Rg7+ {[%clk 0:00:14]} 39. Kf3 {[%clk 0:00:26]}  Rf8 {[%clk 0:00:14]} 40. Re4 {[%clk 0:00:27]}  Qa1 {[%clk 0:00:09]} 41. Ke2 {[%clk 0:00:07]}  Bxf4 {[%clk 0:00:06]} 42. Qc2 {[%clk 0:00:04]}  Be5 {[%clk 0:00:06]} 43. Bf3 {[%clk 0:00:03]}  Qg1 {[%clk 0:00:06]} 44. Re3 {[%clk 0:00:03]}  Qxh2 {[%clk 0:00:06]} 45. Nc3 {[%clk 0:00:02]}  Rgf7 {[%clk 0:00:06]} 46. Ne4 {[%clk 0:00:03]}  Bd4 {[%clk 0:00:07]} 47. Rb3 {[%clk 0:00:03]}  Qh3 {[%clk 0:00:05]} 48. Qd3 {[%clk 0:00:02]}  Qf5 {[%clk 0:00:05]} 49. Nd2 {[%clk 0:00:01]}  Re7+ {[%clk 0:00:04]} 50. Kd1 {[%clk 0:00:02]}  Qxd3 {[%clk 0:00:05]} 51. Rxd3 {[%clk 0:00:03]}  Bxf2 {[%clk 0:00:05]} 52. Ne4 {[%clk 0:00:03]}  Bd4 {[%clk 0:00:06]} 53. Ng5 {[%clk 0:00:03]}  Rf5 {[%clk 0:00:05]} 54. Ne6 {[%clk 0:00:03]}  Re5 {[%clk 0:00:05]} 55. Rd2 {[%clk 0:00:03]}  Re3 {[%clk 0:00:04]} 56. Bg2 {[%clk 0:00:03]}  Bc3 {[%clk 0:00:04]} 57. Ra2 {[%clk 0:00:03]}  R3xe6 {[%clk 0:00:04]} 58. dxe6 {[%clk 0:00:03]}  Rxe6 {[%clk 0:00:05]} 59. Ra8+ {[%clk 0:00:03]}  Kg7 {[%clk 0:00:04]} 60. Bd5 {[%clk 0:00:04]}  Re7 {[%clk 0:00:05]} 61. Rg8+ {[%clk 0:00:05]}  Kh6 {[%clk 0:00:05]} 62. Kc2 {[%clk 0:00:05]}  Bg7 {[%clk 0:00:05]} 63. Rc8 {[%clk 0:00:05]}  Kg5 {[%clk 0:00:05]} 64. Ra8 {[%clk 0:00:04]}  h5 {[%clk 0:00:06]} 65. Ra3 {[%clk 0:00:05]}  Be5 {[%clk 0:00:05]} 66. Rh3 {[%clk 0:00:04]}  Bf4 {[%clk 0:00:06]} 67. Rh1 {[%clk 0:00:04]}  h4 {[%clk 0:00:06]} 68. Kd3 {[%clk 0:00:05]}  Re3+ {[%clk 0:00:06]} 69. Kc2 {[%clk 0:00:05]}  Rg3 {[%clk 0:00:05]} 70. Be6 {[%clk 0:00:04]}  Re3 {[%clk 0:00:04]} 71. Bd7 {[%clk 0:00:04]}  Be5 {[%clk 0:00:03]} 72. Rg1+ {[%clk 0:00:05]}  Kf4 {[%clk 0:00:03]} 73. Rg4+ {[%clk 0:00:05]}  Kf3 {[%clk 0:00:02]} 74. Rxh4 {[%clk 0:00:06]}  Re4 {[%clk 0:00:02]} 75. Bc6 {[%clk 0:00:05]}  Kg3 {[%clk 0:00:01]} 76. Rxe4 {[%clk 0:00:05]}  Kf2 {[%clk 0:00:02]} 77. Kd3 {[%clk 0:00:05]} 1-0


[Site "https://www.chess.com"]

[Event "Titled Tuesday Blitz November 29 Early 2022"]
[White "Ilkhomi, Jaloliddin"]
[Black "Andrews, Todd"]
[WhiteFideId "14700948"]
[BlackFideId "2012456"]
[WhiteElo "2045"]
[BlackElo "2360"]
[Result "1-0"]
[Round "08"]
[TimeControl "180+1"]
[Date "2022.11.30"]
[WhiteClock "0:00:13"]
[BlackClock "0:00:08"]

1. d4 {[%clk 0:03:00]}  Nf6 {[%clk 0:02:59]} 2. Nf3 {[%clk 0:03:00]}  c5 {[%clk 0:02:57]} 3. e3 {[%clk 0:03:00]}  g6 {[%clk 0:02:55]} 4. b3 {[%clk 0:03:00]}  b6 {[%clk 0:02:55]} 5. Bb2 {[%clk 0:03:00]}  Bb7 {[%clk 0:02:56]} 6. Nbd2 {[%clk 0:03:01]}  Bg7 {[%clk 0:02:56]} 7. Bd3 {[%clk 0:03:01]}  O-O {[%clk 0:02:57]} 8. O-O {[%clk 0:03:01]}  cxd4 {[%clk 0:02:56]} 9. exd4 {[%clk 0:03:01]}  d6 {[%clk 0:02:56]} 10. Re1 {[%clk 0:03:00]}  Nbd7 {[%clk 0:02:56]} 11. Ne4 {[%clk 0:03:00]}  Re8 {[%clk 0:02:47]} 12. Qe2 {[%clk 0:02:58]}  Nd5 {[%clk 0:02:40]} 13. Qd2 {[%clk 0:02:50]}  Rc8 {[%clk 0:02:27]} 14. c4 {[%clk 0:02:48]}  N5f6 {[%clk 0:02:24]} 15. Neg5 {[%clk 0:02:26]}  h6 {[%clk 0:02:01]} 16. Ne4 {[%clk 0:02:23]}  Nxe4 {[%clk 0:02:01]} 17. Bxe4 {[%clk 0:02:23]}  Bxe4 {[%clk 0:02:01]} 18. Rxe4 {[%clk 0:02:24]}  Nf6 {[%clk 0:02:02]} 19. Re2 {[%clk 0:02:24]}  e6 {[%clk 0:01:51]} 20. Rae1 {[%clk 0:02:23]}  Nh5 {[%clk 0:01:49]} 21. g3 {[%clk 0:02:19]}  Qf6 {[%clk 0:01:45]} 22. Kg2 {[%clk 0:02:13]}  Red8 {[%clk 0:01:35]} 23. Qe3 {[%clk 0:02:11]}  d5 {[%clk 0:01:33]} 24. Ne5 {[%clk 0:02:10]}  Qe7 {[%clk 0:01:21]} 25. cxd5 {[%clk 0:01:57]}  Rxd5 {[%clk 0:01:20]} 26. Qf3 {[%clk 0:01:58]}  Nf6 {[%clk 0:01:19]} 27. Ng4 {[%clk 0:01:56]}  Rcd8 {[%clk 0:01:14]} 28. Nxf6+ {[%clk 0:01:51]}  Qxf6 {[%clk 0:01:14]} 29. Qe3 {[%clk 0:01:49]}  Qf5 {[%clk 0:01:09]} 30. Rd2 {[%clk 0:01:46]}  e5 {[%clk 0:01:06]} 31. Red1 {[%clk 0:01:45]}  Qd7 {[%clk 0:00:51]} 32. Rd3 {[%clk 0:01:25]}  exd4 {[%clk 0:00:50]} 33. Qd2 {[%clk 0:01:25]}  Kh7 {[%clk 0:00:48]} 34. h4 {[%clk 0:01:23]}  Qc6 {[%clk 0:00:47]} 35. Kh2 {[%clk 0:01:22]}  Qd6 {[%clk 0:00:41]} 36. Qe2 {[%clk 0:01:19]}  Rh5 {[%clk 0:00:35]} 37. Kg1 {[%clk 0:01:09]}  Rd5 {[%clk 0:00:34]} 38. Qf3 {[%clk 0:01:09]}  Qf6 {[%clk 0:00:33]} 39. Qe4 {[%clk 0:01:04]}  Re5 {[%clk 0:00:28]} 40. Qg2 {[%clk 0:01:03]}  Red5 {[%clk 0:00:19]} 41. Qe4 {[%clk 0:00:58]}  Qe5 {[%clk 0:00:19]} 42. Qf3 {[%clk 0:00:57]}  h5 {[%clk 0:00:17]} 43. Qxf7 {[%clk 0:00:49]}  Rf8 {[%clk 0:00:17]} 44. Qb7 {[%clk 0:00:39]}  Qf5 {[%clk 0:00:15]} 45. R1d2 {[%clk 0:00:37]}  Rf7 {[%clk 0:00:12]} 46. Qb8 {[%clk 0:00:37]}  Re5 {[%clk 0:00:10]} 47. Qa8 {[%clk 0:00:31]}  Re1+ {[%clk 0:00:09]} 48. Kg2 {[%clk 0:00:32]}  Qg4 {[%clk 0:00:07]} 49. Bxd4 {[%clk 0:00:28]}  Bxd4 {[%clk 0:00:07]} 50. Rxd4 {[%clk 0:00:29]}  Qf5 {[%clk 0:00:04]} 51. Rf4 {[%clk 0:00:26]}  Qe6 {[%clk 0:00:01]} 52. Rxf7+ {[%clk 0:00:14]}  Qxf7 {[%clk 0:00:02]} 53. Qc8 {[%clk 0:00:13]}  Re7 {[%clk 0:00:02]} 54. Qc6 {[%clk 0:00:12]}  Qg7 {[%clk 0:00:03]} 55. Rd6 {[%clk 0:00:11]}  Rf7 {[%clk 0:00:04]} 56. Rd8 {[%clk 0:00:09]}  Qf6 {[%clk 0:00:04]} 57. Qxf6 {[%clk 0:00:08]}  Rxf6 {[%clk 0:00:05]} 58. Rd7+ {[%clk 0:00:09]}  Kh6 {[%clk 0:00:05]} 59. Rxa7 {[%clk 0:00:10]}  Rd6 {[%clk 0:00:05]} 60. Rb7 {[%clk 0:00:10]}  Rd2 {[%clk 0:00:06]} 61. a4 {[%clk 0:00:11]}  Rd6 {[%clk 0:00:04]} 62. Kf3 {[%clk 0:00:11]}  g5 {[%clk 0:00:04]} 63. hxg5+ {[%clk 0:00:11]}  Kxg5 {[%clk 0:00:05]} 64. Ke4 {[%clk 0:00:11]}  Rf6 {[%clk 0:00:04]} 65. f4+ {[%clk 0:00:11]}  Kg4 {[%clk 0:00:05]} 66. Rg7+ {[%clk 0:00:11]}  Kh3 {[%clk 0:00:05]} 67. Ke5 {[%clk 0:00:12]}  Rc6 {[%clk 0:00:05]} 68. f5 {[%clk 0:00:12]}  Rc5+ {[%clk 0:00:04]} 69. Ke6 {[%clk 0:00:13]}  Rc3 {[%clk 0:00:04]} 70. b4 {[%clk 0:00:11]}  Re3+ {[%clk 0:00:04]} 71. Kd5 {[%clk 0:00:11]}  Rxg3 {[%clk 0:00:04]} 72. Rxg3+ {[%clk 0:00:11]}  Kxg3 {[%clk 0:00:05]} 73. f6 {[%clk 0:00:11]}  h4 {[%clk 0:00:06]} 74. f7 {[%clk 0:00:12]}  h3 {[%clk 0:00:07]} 75. f8=Q {[%clk 0:00:12]}  h2 {[%clk 0:00:07]} 76. Qh6 {[%clk 0:00:13]}  Kg2 {[%clk 0:00:08]} 77. Qxh2+ {[%clk 0:00:12]}  Kxh2 {[%clk 0:00:08]} 78. a5 {[%clk 0:00:13]} 1-0


[Site "https://www.chess.com"]